Workbook

Sheet Лист1
A1: Школа | F1: Утвердил: | G1: должность
A2: Типовое примерное меню приготавливаемых блюд | G2: фамилия
A3: Возрастная категория | E3: 7-11 лет | G3: дата
A5: Неделя | B5: День недели | C5: Прием пищи | D5: Раздел меню | E5: Блюда | F5: Вес блюда, г | G5: Белки | H5: Жиры | I5: Углеводы | J5: Калорийность | K5: № рецептуры | L5: Цена
A6: 1 | B6: 1 | C6: Завтрак | D6: гор.блюдо | E6: Котлеты рубленные из птицы с томатным соусом | F6: 90 | G6: 12 | H6: 16 | I6: 6.77 | J6: 267 | K6: 209 | L6: 43.78
D7: гор.блюдо | E7: Каша пшенная рассыпчатая | F7: 180 | G7: 9 | H7: 8 | I7: 46.9 | J7: 319 | K7: 222 | L7: 7.95
D8: гор.напиток | E8: Витаминизированный кисель Витошка | F8: 200 | I8: 19.2 | J8: 16 | K8: 299 | L8: 10.37
D9: хлеб | E9: Хлеб пшеничный витаминизированный | F9: 30 | G9: 3 | I9: 14.64 | J9: 72 | K9: 1 | L9: 2.34
D10: фрукты
D11: бутерброд
D12: напиток
D13: итого | L13: 64.44
A14: =A6 -> 1 | B14: =B6 -> 1 | C14: Обед | D14: закуска
D15: 1 блюдо | E15: Щи из свежей капусты с картофелем | F15: 260 | G15: 2 | H15: 6 | I15: 11 | J15: 108 | K15: 63 | L15: 12.2
D16: 2 блюдо | E16: Рыба, тушеная в томате с овощами | F16: 100 | G16: 8 | H16: 10 | I16: 5 | J16: 114 | K16: 219 | L16: 32.7
D17: гарнир | E17: Макаронные изделия отварные | F17: 205 | G17: 7.36 | H17: 7 | I17: 47 | J17: 282 | K17: 227 | L17: 8.5
D18: напиток | E18: Компот из яблок с лимоном | F18: 200 | I18: 25 | J18: 104 | K18: 284 | L18: 15.34
D19: хлеб бел.
D20: хлеб черн. | E20: Хлеб рж-пшеничный витаминизированный | F20: 50 | G20: 7.2 | H20: 1 | I20: 43 | J20: 135 | K20: 421 | L20: 3.8
D23: итого | L23: 72.54
A24: =A6 -> 1 | B24: =B6 -> 1 | C24: Итого за день: | L24: =L13+L23 -> 136.98
A25: 1 | B25: 2 | C25: Завтрак | D25: гор.блюдо | E25: Гуляш из отварного мяса | F25: 90 | G25: 15.2 | H25: 14 | I25: 7 | J25: 381 | K25: 91 | L25: 26.88
E26: Картофельное пюре | F26: 200 | G26: 4 | H26: 8 | I26: 31 | J26: 213 | K26: 241 | L26: 19.11
D27: напиток | E27: Чай с лимоном и сахаром | F27: 200 | I27: 15 | J27: 61 | K27: 302 | L27: 3.47
D28: хлеб | E28: Хлеб пшеничный витаминизированный | F28: 30 | G28: 3 | I28: 14 | J28: 72 | K28: 1 | L28: 2.34
D29: нпиток | E29: Йогурт питьевой Два котенка | F29: 100 | G29: 3 | H29: 2.5 | I29: 11 | J29: 79 | K29: 298 | L29: 27
D30: булочное
D31: закуска
D32: итого | L32: =SUM(L25:L31) -> 78.8
A33: =A25 -> 1 | B33: =B25 -> 2 | C33: Обед | D33: закуска | E33: Винегрет овощной | F33: 100 | G33: 1.26 | H33: 5 | I33: 8 | J33: 129 | K33: 1 | L33: 19.01
D34: 1 блюдо | E34: Суп картофельный с клецками | F34: 250 | G34: 3 | H34: 3 | I34: 15 | J34: 95 | K34: 46 | L34: 6.61
D35: 2 блюдо | E35: Плов из мяса птицы | F35: 180 | G35: 17 | H35: 18 | I35: 28 | J35: 377 | K35: 131 | L35: 32.75
D36: гарнир
D37: гор.напиток | E37: Витаминизированный кисель Витошка | F37: 200 | I37: 19 | J37: 16 | K37: 299 | L37: 10.37
D38: хлеб бел.
D39: хлеб черн. | E39: Хлеб рж- пшеничный витаминизированный | F39: 50 | G39: 3 | I39: 14.6 | J39: 132 | K39: 1 | L39: 3.8
D42: итого | L42: =SUM(L33:L41) -> 72.54
A43: =A25 -> 1 | B43: =B25 -> 2 | C43: Итого за день: | L43: =L32+L42 -> 151.34
A44: 1 | B44: 3 | C44: Завтрак | D44: гор.блюдо | E44: Котлеты припущенные из мяса птицы с томатным соусом | F44: 100 | G44: 11 | H44: 14 | I44: 9 | J44: 243 | K44: 209 | L44: 43.78
D45: гарнир | E45: Макаронные изделия отварные | F45: 200 | G45: 7 | H45: 7 | I45: 37 | J45: 282 | K45: 227 | L45: 8.5
D46: гор.напиток | E46: Чай с сахаром | F46: 200 | I46: 9 | J46: 35 | K46: 283 | L46: 1.3
D47: хлеб | E47: Бутерброд с сыром | F47: 45 | G47: 6 | H47: 4 | I47: 35 | J47: 128 | K47: 42 | L47: 10.86
D48: фрукты
D51: итого | L51: =SUM(L44:L50) -> 64.44
A52: =A44 -> 1 | B52: =B44 -> 3 | C52: Обед | D52: закуска
D53: 1 блюдо | E53: Суп картофельный с бобовыми и гренками | F53: 270 | G53: 8 | H53: 4 | I53: 31 | J53: 199 | K53: 63 | L53: 13.46
D54: 2 блюдо | E54: Мясо тушеное | F54: 90 | G54: 10.5 | H54: 8 | I54: 3 | J54: 136 | K54: 191 | L54: 36.49
D55: гарнир | E55: Картофель отварной | F55: 180 | G55: 4 | H55: 12 | I55: 39 | J55: 262 | K55: 239 | L55: 17.49
D56: напиток | E56: Чай с сахаром | F56: 200 | I56: 9 | J56: 35 | K56: 283 | L56: 1.3
D57: хлеб бел.
D58: хлеб черн. | E58: Хлеб рж- пшеничный витаминизированный | F58: 50 | G58: 4 | I58: 43 | J58: 132 | K58: 421 | L58: 3.8
D61: итого | F61: =SUM(F52:F60) -> 790 | G61: =SUM(G52:G60) -> 26.5 | H61: =SUM(H52:H60) -> 24 | I61: =SUM(I52:I60) -> 125 | J61: =SUM(J52:J60) -> 764 | L61: =SUM(L52:L60) -> 72.54
A62: =A44 -> 1 | B62: =B44 -> 3 | C62: Итого за день: | L62: =L51+L61 -> 136.98
A63: 1 | B63: 4 | C63: Завтрак | D63: гор.блюдо | E63: Запеканка из творога со сгущенным молоком | F63: 160 | G63: 24 | H63: 20 | I63: 29 | J63: 422 | K63: 141 | L63: 83.84
D65: напиток | E65: Чай с молоком | F65: 200 | G65: 1.4 | H65: 2 | I65: 17 | J65: 89 | K65: 296 | L65: 5.08
D66: хлеб | E66: Хлеб пшеничный витаминизированный | F66: 30 | G66: 2 | I66: 15 | J66: 73 | K66: 1 | L66: 2.34
D67: фрукты | E67: Яблоки | F67: 230 | I67: 23 | J67: 96 | K67: 424 | L67: 41.4
D68: булочное
D69: закуска
D70: итого | F70: =SUM(F63:F69) -> 620 | G70: =SUM(G63:G69) -> 27.4 | H70: =SUM(H63:H69) -> 22 | I70: =SUM(I63:I69) -> 84 | J70: =SUM(J63:J69) -> 680 | L70: =SUM(L63:L69) -> 132.66
A71: =A63 -> 1 | B71: =B63 -> 4 | C71: Обед | D71: закуска
D72: 1 блюдо | E72: Борщ с капустой и картофелем | F72: 250 | G72: 2 | H72: 7 | I72: 11 | J72: 111 | K72: 37 | L72: 11.89
D73: 2 блюдо | E73: Котлеты из говядины с овощами | F73: 90 | G73: 14 | H73: 13 | I73: 4 | J73: 237 | K73: 188 | L73: 37.64
D74: гарнир | E74: Каша гречневая рассыпчатая | F74: 155 | G74: 5 | H74: 4 | I74: 35 | J74: 263 | K74: 219 | L74: 14.02
D75: напиток | E75: Компот из смеси сухофруктов | F75: 200 | I75: 31 | J75: 121 | K75: 310 | L75: 5.19
D76: хлеб бел.
D77: хлеб черн. | E77: Хлеб рж- пшеничный витаминизированный | F77: 50 | G77: 4 | H77: 1 | I77: 35 | J77: 132 | K77: 421 | L77: 3.8
D80: итого | F80: =SUM(F72:F79) -> 745 | G80: =SUM(G72:G79) -> 25 | H80: =SUM(H72:H79) -> 25 | I80: =SUM(I72:I79) -> 116 | J80: =SUM(J72:J79) -> 864 | L80: =SUM(L72:L79) -> 72.54
A81: =A63 -> 1 | B81: =B63 -> 4 | C81: Итого за день: | L81: =L70+L80 -> 205.2
A82: 1 | B82: 5 | C82: Завтрак | D82: гор.блюдо | E82: Каша рисовая молочная жидкая | F82: 200 | G82: 5 | H82: 7 | I82: 32 | J82: 310 | K82: 114 | L82: 25.57
D84: гор.напиток | E84: Чай с сахаром | F84: 200 | I84: 9 | J84: 35 | K84: 283 | L84: 1.3
D85: хлеб | E85: Бутерброд с сыром | F85: 45 | G85: 16 | H85: 13 | I85: 25 | J85: 186 | K85: 42 | L85: 10.57
D86: напиток | E86: Йогурт питьевой Два котенка | F86: 100 | G86: 3 | H86: 2.5 | I86: 11 | J86: 79 | K86: 298 | L86: 27
D87: закуска
D88: булочное
D89: итого | F89: =SUM(F82:F88) -> 545 | G89: =SUM(G82:G88) -> 24 | H89: =SUM(H82:H88) -> 22.5 | I89: =SUM(I82:I88) -> 77 | J89: =SUM(J82:J88) -> 610 | L89: =SUM(L82:L88) -> 64.44
A90: =A82 -> 1 | B90: =B82 -> 5 | C90: Обед | D90: закуска
D91: 1 блюдо | E91: Суп лапша домашняя | F91: 250 | G91: 3 | H91: 4 | I91: 12 | J91: 96 | K91: 56 | L91: 16.87
D92: 2 блюдо | E92: Биточки из мяса птицы с томатным соусом | F92: 90 | G92: 12 | H92: 11 | I92: 7 | J92: 187 | K92: 209 | L92: 23.99
D93: гарнир | E93: Картофельное пюре | F93: 200 | G93: 5 | H93: 8 | I93: 31 | J93: 215 | K93: 241 | L93: 19.11
D94: напиток | E94: Компот из свежих плодов | F94: 200 | I94: 15 | J94: 60 | K94: 310 | L94: 8.77
D95: хлеб бел.
D96: хлеб черн. | E96: Хлеб рж- пшеничный витаминизированный | F96: 50 | G96: 4 | H96: 1 | I96: 35 | J96: 132 | K96: 421 | L96: 3.8
D97: булочное
D99: итого | F99: =SUM(F90:F98) -> 790 | G99: =SUM(G90:G98) -> 24 | H99: =SUM(H90:H98) -> 24 | I99: =SUM(I90:I98) -> 100 | J99: =SUM(J90:J98) -> 690 | L99: =SUM(L90:L98) -> 72.54
A100: =A82 -> 1 | B100: =B82 -> 5 | C100: Итого за день: | L100: =L89+L99 -> 136.98
A101: 2 | B101: 1 | C101: Завтрак | D101: гор.блюдо | E101: Макароны запеченные с сыром | F101: 200 | G101: 15 | H101: 16 | I101: 33 | J101: 307 | K101: 213 | L101: 17.74
D103: гор.напиток | E103: Какао с витаминами Витошка | F103: 200 | G103: 4 | H103: 3.1 | I103: 25 | J103: 145 | K103: 306 | L103: 17.49
D104: хлеб | E104: Бутерброд с маслом | F104: 40 | G104: 4 | H104: 7 | I104: 22 | J104: 138 | K104: 1 | L104: 7.99
D105: фрукты | E105: Яблоки | F105: 230 | G105: 1 | I105: 23 | J105: 96 | K105: 424 | L105: 41.4
D106: бутерброд
D108: итого | F108: =SUM(F101:F107) -> 670 | G108: =SUM(G101:G107) -> 24 | H108: =SUM(H101:H107) -> 26.1 | I108: =SUM(I101:I107) -> 103 | J108: =SUM(J101:J107) -> 686 | L108: =SUM(L101:L107) -> 84.62
A109: =A101 -> 2 | B109: =B101 -> 1 | C109: Обед | D109: закуска
D110: 1 блюдо | E110: Суп картофельный с мясными фрикадельками | F110: 285 | G110: 9 | H110: 4.9 | I110: 35.91 | J110: 227 | K110: 48 | L110: 26.63
D111: 2 блюдо | E111: Рагу из птицы | F111: 180 | G111: 11.38 | H111: 19.58 | I111: 18.2 | J111: 309 | K111: 214 | L111: 16.59
D112: гарнир
D113: напиток | E113: Компот из апельсинов с яблоками | F113: 200 | I113: 27 | J113: 111 | K113: 278 | L113: 25.52
D114: хлеб бел.
D115: хлеб черн. | E115: Хлеб рж- пшеничный витаминизированный | F115: 50 | G115: 4 | H115: 1 | I115: 35 | J115: 132 | K115: 421 | L115: 3.8
D118: итого | F118: =SUM(F110:F117) -> 715 | G118: =SUM(G110:G117) -> 24.38 | H118: =SUM(H110:H117) -> 25.48 | I118: =SUM(I110:I117) -> 116.11 | J118: =SUM(J110:J117) -> 779 | L118: =SUM(L110:L117) -> 72.54
A119: =A101 -> 2 | B119: =B101 -> 1 | C119: Итого за день: | L119: =L108+L118 -> 157.16
A120: 2 | B120: 2 | C120: Завтрак | D120: гор.блюдо | E120: Тефтели из говядины с рисом("ежики") | F120: 90 | G120: 7 | H120: 10 | I120: 9 | J120: 156 | K120: 202 | L120: 23.28
E121: Каша пшеничная рассыпчатая | F121: 180 | G121: 11 | H121: 8 | I121: 44.31 | J121: 278 | K121: 222 | L121: 10.52
D122: гор.напиток | E122: Чай с сахаром | F122: 200 | I122: 9 | J122: 35 | K122: 283 | L122: 1.3
D123: хлеб | E123: Хлеб пшеничный витаминизированный | F123: 30 | G123: 4 | H123: 1 | I123: 14 | J123: 72 | K123: 1 | L123: 2.34
D124: фрукты | E124: Йогурт питьевой Два котенка | F124: 100 | G124: 3 | H124: 2.5 | I124: 11 | J124: 79 | K124: 298 | L124: 27
D125: булочное
D127: итого | F127: =SUM(F120:F126) -> 600 | G127: =SUM(G120:G126) -> 25 | H127: =SUM(H120:H126) -> 21.5 | I127: =SUM(I120:I126) -> 87.31 | J127: =SUM(J120:J126) -> 620 | L127: =SUM(L120:L126) -> 64.44
A128: =A120 -> 2 | B128: =B120 -> 2 | C128: Обед | D128: закуска | E128: Салат из свеклы отварной | F128: 100 | G128: 1.43 | H128: 5 | I128: 9.5 | J128: 75 | K128: 23 | L128: 4.86
D129: 1 блюдо | E129: Рассольник ленинградский | F129: 260 | G129: 5 | H129: 7.3 | I129: 22.38 | J129: 149.6 | K129: 42 | L129: 16.81
D130: 2 блюдо | E130: Жаркое по- домашнему | F130: 180 | G130: 14 | H130: 11 | I130: 18 | J130: 273 | K130: 181 | L130: 31.73
D131: гарнир
D132: напиток | E132: Компот из яблок с лимоном | F132: 200 | I132: 25 | J132: 104 | K132: 284 | L132: 15.34
D133: хлеб бел.
D134: хлеб черн. | E134: Хлеб рж- пшеничный витаминизированный | F134: 50 | G134: 4 | H134: 1 | I134: 35 | J134: 132 | K134: 421 | L134: 3.8
D137: итого | F137: =SUM(F128:F136) -> 790 | G137: =SUM(G128:G136) -> 24.43 | H137: =SUM(H128:H136) -> 24.3 | I137: =SUM(I128:I136) -> 109.88 | J137: =SUM(J128:J136) -> 733.6 | L137: =SUM(L128:L136) -> 72.54
A138: =A120 -> 2 | B138: =B120 -> 2 | C138: Итого за день: | L138: =L127+L137 -> 136.98
A139: 2 | B139: 3 | C139: Завтрак | D139: гор.блюдо | E139: Каша " Артек" молочная вязкая(пшеничная) | F139: 180 | G139: 17.5 | H139: 17.1 | I139: 69 | J139: 365 | K139: 179 | L139: 13.75
D140: закуска
D141: напиток | E141: Чай с сахаром | F141: 200 | I141: 9 | J141: 35 | K141: 283 | L141: 1.3
D142: хлеб | E142: Бутерброд с маслом | F142: 40 | G142: 6.5 | H142: 7 | I142: 14 | J142: 178 | K142: 1 | L142: 7.99
D143: фрукты | E143: Яблоки | F143: 230 | I143: 23 | J143: 96 | K143: 424 | L143: 41.4
D146: итого | F146: =SUM(F139:F145) -> 650 | G146: =SUM(G139:G145) -> 24 | H146: =SUM(H139:H145) -> 24.1 | I146: =SUM(I139:I145) -> 115 | J146: =SUM(J139:J145) -> 674 | L146: =SUM(L139:L145) -> 64.44
A147: =A139 -> 2 | B147: =B139 -> 3 | C147: Обед | D147: закуска
D148: 1 блюдо | E148: Суп крестьянский с крупой (геркулес) | F148: 260 | G148: 2 | H148: 5 | I148: 12 | J148: 105 | K148: 65 | L148: 10.54
D149: 2 блюдо | E149: Гуляш | F149: 90 | G149: 14 | H149: 13 | I149: 3 | J149: 201 | K149: 92 | L149: 43.54
D150: гарнир | E150: Макароны изделия отварные с овощами | F150: 150 | G150: 5 | H150: 6 | I150: 34 | J150: 211 | K150: 228 | L150: 14.36
D151: гор.напиток | E151: Чай с сахаром | F151: 200 | I151: 9 | J151: 35 | K151: 283 | L151: 1.3
D152: хлеб бел.
D153: хлеб черн. | E153: Хлеб рж- пшеничный витаминизированный | F153: 50 | G153: 4 | H153: 1 | I153: 35 | J153: 209 | K153: 421 | L153: 3.8
D156: итого | F156: =SUM(F148:F155) -> 750 | G156: =SUM(G148:G155) -> 25 | H156: =SUM(H148:H155) -> 25 | I156: =SUM(I148:I155) -> 93 | J156: =SUM(J148:J155) -> 761 | L156: =SUM(L148:L155) -> 73.54
A157: =A139 -> 2 | B157: =B139 -> 3 | C157: Итого за день: | L157: =L146+L156 -> 137.98
A158: 2 | B158: 4 | C158: Завтрак | D158: гор.блюдо | E158: Фрикадельки из говядины с томатным соусом | F158: 100 | G158: 12 | H158: 14 | I158: 5 | J158: 204 | K158: 203 | L158: 30.52
D159: гарнир | E159: Каша гречневая рассыпчатая с луком | F159: 180 | G159: 10 | H159: 10 | I159: 42 | J159: 302 | K159: 218 | L159: 22.62
D160: гор.напиток | E160: Чай с лимоном и сахаром | F160: 200 | I160: 15 | J160: 61 | K160: 302 | L160: 3.47
D161: хлеб | E161: Бутерброд с сыром | F161: 40 | G161: 2 | I161: 15 | J161: 112 | K161: 1 | L161: 7.83
D162: фрукты
D165: итого | F165: =SUM(F158:F164) -> 520 | G165: =SUM(G158:G164) -> 24 | H165: =SUM(H158:H164) -> 24 | I165: =SUM(I158:I164) -> 77 | J165: =SUM(J158:J164) -> 679 | L165: =SUM(L158:L164) -> 64.44
A166: =A158 -> 2 | B166: =B158 -> 4 | C166: Обед | D166: закуска | E166: Салат из белокочанной капусты с морковью | F166: 100 | G166: 1 | H166: 5 | I166: 5 | J166: 80 | K166: 4 | L166: 9.64
D167: 1 блюдо | E167: Суп свекольник | F167: 260 | G167: 2 | H167: 6 | I167: 10 | J167: 104 | K167: 43 | L167: 15.58
D168: 2 блюдо | E168: Тефтели рыбные с томатным соусом | F168: 100 | G168: 13 | H168: 7 | I168: 9 | J168: 121 | K168: 174 | L168: 15.06
D169: гарнир | E169: Картофельное пюре с морковью | F169: 200 | G169: 4 | H169: 5 | I169: 29 | J169: 176 | K169: 242 | L169: 19.69
D170: напиток | E170: Компот из свежих плодов(яблоки) | F170: 200 | I170: 15 | J170: 61 | K170: 310 | L170: 8.77
D171: хлеб бел.
D172: хлеб черн. | E172: Хлеб рж- пшеничный витаминизированный | F172: 50 | G172: 4 | H172: 1 | I172: 35 | J172: 132 | K172: 421 | L172: 3.8
D175: итого | F175: =SUM(F166:F174) -> 910 | G175: =SUM(G166:G174) -> 24 | H175: =SUM(H166:H174) -> 24 | I175: =SUM(I166:I174) -> 103 | J175: =SUM(J166:J174) -> 674 | L175: =SUM(L166:L174) -> 72.54
A176: =A158 -> 2 | B176: =B158 -> 4 | C176: Итого за день: | L176: =L165+L175 -> 136.98
A177: 2 | B177: 5 | C177: Завтрак | D177: гор.блюдо | E177: Каша Дружба | F177: 200 | G177: 12 | H177: 11 | I177: 36 | J177: 343 | K177: 102 | L177: 14.75
D179: напиток | E179: Чай с сахаром | F179: 200 | I179: 9 | J179: 35 | K179: 283 | L179: 1.3
D180: хлеб | E180: Бутерброд с маслом , сыром | F180: 50 | G180: 9 | H180: 10 | I180: 25 | J180: 204 | K180: 42 | L180: 21.39
D181: фрукты | E181: Йогурт питьевой Два котенка | F181: 100 | G181: 3 | H181: 3 | I181: 11 | J181: 79 | K181: 298 | L181: 27
D182: булочное
D183: закуска
D184: итого | F184: =SUM(F177:F183) -> 550 | G184: =SUM(G177:G183) -> 24 | H184: =SUM(H177:H183) -> 24 | I184: =SUM(I177:I183) -> 81 | J184: =SUM(J177:J183) -> 661 | L184: =SUM(L177:L183) -> 64.44
A185: =A177 -> 2 | B185: =B177 -> 5 | C185: Обед | D185: закуска
D186: 1 блюдо | E186: Суп картофельный с бобовыми и гренками | F186: 270 | G186: 8 | H186: 5 | I186: 32 | J186: 199 | K186: 63 | L186: 13.46
D187: 2 блюдо | E187: Биточки из мяса птицы с томатным соусом | F187: 90 | G187: 10 | H187: 11 | I187: 7 | J187: 168 | K187: 209 | L187: 29.91
D188: гарнир | E188: Рис припущенный | F188: 180 | G188: 5 | H188: 7 | I188: 45 | J188: 258 | K188: 225 | L188: 16.6
D189: напиток | E189: Компот из свежих плодов(яблоки) | F189: 200 | I189: 15 | J189: 60 | K189: 310 | L189: 8.77
D190: хлеб бел.
D191: хлеб черн. | E191: Хлеб рж- пшеничный витаминизированный | F191: 50 | G191: 4 | H191: 1 | I191: 35 | J191: 132 | K191: 421 | L191: 3.8
D194: итого | F194: =SUM(F186:F193) -> 790 | G194: =SUM(G186:G193) -> 27 | H194: =SUM(H186:H193) -> 24 | I194: =SUM(I186:I193) -> 134 | J194: =SUM(J186:J193) -> 817 | L194: =SUM(L186:L193) -> 72.54
A195: =A177 -> 2 | B195: =B177 -> 5 | C195: Итого за день: | L195: =L184+L194 -> 136.98
